bitfinex/quotes_SOLUSD_20251006
["timestamp","ask_amount","ask_price","bid_price","bid_amount"]
[1759774747873,3.01856772,235.8,235.79,0.1]
[1759774748265,3.72856772,235.8,235.79,0.1]
[1759774748855,0.71,235.8,235.79,0.1]
[1759774749052,3.72856772,235.8,235.79,0.1]
[1759774750079,7.96944982,235.8,235.79,0.1]
[1759774752251,4.9508821,235.8,235.79,0.1]
[1759774752456,7.96944982,235.8,235.79,0.1]
[1759774755677,23.40453714,235.93,235.79,0.1]
[1759774755678,0.71,235.85,235.79,0.49]
[1759774757171,0.71,235.85,235.79,0.1]
[1759774757376,4.95015343,235.85,235.79,0.1]
[1759774758579,0.71,235.85,235.79,0.49]
[1759774759279,3.01856772,235.92,235.81,20.8]
[1759774759481,7.93764788,235.91,235.82,21.19]
[1759774759665,0.68,235.9,235.82,21.19]
[1759774760068,0.68,235.9,235.83,0.39]
[1759774761100,0.68,235.93,235.83,0.39]
[1759774761258,0.68,235.93,235.83,21.19]
[1759774761464,4.91871126,235.93,235.86,20.8]
[1759774761770,4.91871126,235.93,235.84,4.63007038]
[1759774761771,4.91871126,235.93,235.85,0.39]
[1759774762964,0.68,235.95,235.87,20.8]
[1759774763182,0.68,235.95,235.88,0.39]
[1759774763973,0.68,235.98,235.9,20.8]
[1759774764183,0.68,235.98,235.9,21.19]
[1759774764871,0.68,235.98,235.9,25.42897588]
[1759774765877,0.68,235.98,235.9,28.75829372]
[1759774766180,4.91764978,235.98,235.9,3.71931784]
[1759774767196,0.68,235.98,235.91,0.39]
[1759774767969,10.59223014,236.03,235.93,20.8]
[1759774768190,3.01856772,236.01,235.93,21.19]
[1759774768493,3.69856772,236.01,235.93,21.19]
[1759774769371,0.68,236.01,235.93,25.03852437]
[1759774769700,0.68,236.04,235.97,20.8]
[1759774770483,4.91665288,236.04,235.97,20.8]
[1759774770771,0.68,236.06,235.98,0.39]
[1759774771483,0.68,236.06,235.98,21.19]
[1759774771687,0.68,236.06,235.99,0.39]
[1759774771997,0.88,236.09,235.99,0.39]
[1759774772304,0.88,236.09,236.0,50.5]
[1759774772486,0.88,236.09,236.01,0.39]
[1759774772689,0.88,236.09,236.01,4.62709901]
[1759774773291,5.11575343,236.09,236.01,0.39]
[1759774774105,0.88,236.09,236.01,0.39]
[1759774774271,0.2,236.09,236.01,4.62708428]
[1759774774468,0.2,236.09,236.02,0.39]
[1759774774702,0.2,236.09,236.02,4.62675225]
[1759774774907,0.2,236.09,236.03,0.39]
[1759774779193,0.2,236.09,236.06,20.8]
[1759774779515,0.2,236.09,236.06,50.48]
[1759774779879,0.2,236.09,236.06,20.8]
[1759774780204,0.66,236.08,236.04,20.8]
[1759774780403,0.66,236.07,236.04,20.8]
[1759774780584,0.66,236.06,236.04,20.8]
[1759774780779,4.43573406,236.09,236.01,29.7]
[1759774781083,0.66,236.08,235.99,20.8]
[1759774781283,0.66,236.07,235.91,0.39]
[1759774781507,3.01856772,236.02,235.92,16.34]
[1759774781674,0.66,236.01,235.92,16.34]
[1759774781881,0.66,236.01,235.95,20.8]
[1759774782303,0.66,236.01,235.93,0.39]
[1759774782803,0.66,236.01,235.95,20.8]
[1759774785080,0.66,236.01,235.96,29.7]
[1759774786216,0.66,236.03,235.99,20.8]
[1759774786509,0.66,236.02,235.99,20.8]
[1759774786711,0.66,236.05,235.99,20.8]
[1759774788407,0.66,236.05,236.0,20.8]
[1759774788591,0.67,236.04,236.0,20.8]
[1759774789006,4.23621514,236.06,235.99,20.8]
[1759774789305,0.67,236.03,235.96,20.8]
[1759774789484,14.82674297,236.06,235.96,20.8]
[1759774789485,0.67,236.02,235.96,20.8]
[1759774792615,4.90695381,236.02,235.96,20.8]
[1759774793382,0.67,236.02,235.96,20.8]
[1759774795618,4.9069358,236.02,235.96,20.8]
[1759774799192,4.9069358,236.02,235.96,21.19]
[1759774799897,1.92878159,236.05,235.96,21.19]
[1759774799898,4.23639059,236.05,235.97,0.39]
[1759774800097,4.90639059,236.05,235.97,0.39]
[1759774800709,10.78944314,236.09,235.98,29.7]
[1759774800914,0.67,236.07,235.99,0.39]
[1759774801304,0.87,236.09,236.01,20.8]
[1759774801503,0.87,236.09,236.01,21.19]
[1759774801725,0.67,236.08,236.01,21.19]
[1759774802022,4.90587963,236.08,236.01,21.19]
[1759774802808,0.67,236.08,236.01,21.19]
[1759774803042,0.2,236.09,236.01,21.19]
[1759774803321,0.67,236.07,236.01,20.8]
[1759774803711,0.2,236.09,236.02,21.19]
[1759774803893,0.2,236.09,236.06,20.8]
[1759774804294,0.2,236.09,236.06,21.19]
[1759774804705,0.2,236.09,236.06,20.8]
[1759774804909,0.2,236.09,236.07,0.39]
[1759774805108,0.2,236.09,236.08,29.7]
[1759774805925,0.2,236.09,236.08,30.09]
[1759774808098,0.2,236.09,236.08,34.32585225]
[1759774808720,0.2,236.09,236.08,30.09]
[1759774809307,0.2,236.09,236.08,0.39]
[1759774809527,0.2,236.09,236.08,30.07]
[1759774809929,0.2,236.09,236.08,34.30585225]
[1759774810306,0.2,236.09,236.08,45.18232746]
[1759774811404,0.2,236.13,236.11,20.8]
[1759774811604,0.2,236.13,236.12,29.68]
[1759774811843,0.2,236.13,236.12,30.07]
[1759774812406,0.2,236.13,236.07,16.80637385]
[1759774812712,0.2,236.13,236.1,20.8]
[1759774813208,0.2,236.13,236.1,21.19]
[1759774814335,0.2,236.13,236.1,20.8]
[1759774814908,0.2,236.13,236.11,29.68]
[1759774815301,0.2,236.13,236.12,0.39]
[1759774815501,0.2,236.13,236.12,4.62513467]
[1759774817016,0.2,236.13,236.12,0.39]
[1759774817437,0.87,236.13,236.09,20.8]
[1759774817733,0.2,236.13,236.12,20.8]
[1759774819714,0.2,236.13,236.12,29.7]
[1759774819904,0.86,236.13,236.12,29.7]
[1759774820631,0.86,236.13,236.04,21.46773605]
[1759774820632,7.02378751,236.13,236.04,1.92878159]
[1759774820830,0.66,236.12,236.05,29.7]
[1759774821033,0.66,236.11,236.05,29.7]
[1759774821220,0.66,236.1,236.05,29.7]
[1759774821421,0.66,236.09,236.05,29.7]
[1759774822013,0.66,236.08,236.05,29.7]
[1759774822312,0.66,236.07,236.06,29.72]
[1759774822851,0.66,236.07,236.02,20.8]
[1759774823010,0.66,236.07,236.05,29.7]
[1759774823627,4.2353376,236.11,236.05,29.7]
[1759774823912,0.66,236.1,236.05,29.7]
[1759774824107,0.66,236.09,236.05,29.7]
[1759774824332,0.66,236.11,236.08,20.8]
[1759774824619,0.66,236.1,236.08,29.7]
[1759774824834,0.2,236.13,236.08,29.7]
[1759774825018,0.66,236.1,236.08,29.7]
[1759774827353,0.66,236.09,235.99,0.39]
[1759774827637,0.66,236.09,236.0,29.68]
[1759774827839,0.66,236.08,236.03,20.8]
[1759774828013,0.66,236.07,236.04,29.7]
[1759774828338,0.66,236.06,236.04,29.7]
[1759774831243,0.66,236.06,235.99,21.19]
[1759774831425,0.66,236.06,236.03,20.8]
[1759774831621,0.66,236.06,236.04,29.68]
[1759774832021,0.66,236.09,236.04,29.68]
[1759774832226,0.66,236.08,236.04,29.68]
[1759774833128,0.66,236.07,236.04,29.68]
[1759774833329,20.8,236.1,236.04,161.18]
[1759774833330,0.66,236.09,236.04,161.18]
[1759774833532,0.66,236.08,236.04,161.18]
[1759774836037,25.03513467,236.12,236.04,29.68]
[1759774836340,0.86,236.13,236.05,0.39]
[1759774838232,0.86,236.13,236.05,4.62632568]
[1759774838829,0.86,236.13,236.06,0.39]
[1759774839141,0.86,236.13,236.07,29.68]
[1759774840830,0.2,236.13,236.07,34.30596017]
[1759774841038,0.2,236.13,236.08,0.39]
[1759774841332,0.2,236.13,236.09,0.39]
[1759774841529,0.2,236.13,236.1,0.39]
[1759774841730,0.2,236.13,236.11,29.68]
[1759774842636,0.2,236.13,236.11,30.07]
[1759774843145,0.2,236.13,236.11,34.30528894]
[1759774843348,0.2,236.13,236.12,0.39]
[1759774843748,0.2,236.13,236.11,33.91528894]
[1759774843937,0.2,236.13,236.11,34.30528894]
[1759774844839,0.2,236.13,236.12,0.39]
[1759774846646,0.2,236.13,236.12,4.62513467]
[1759774849549,0.2,236.13,236.12,4.23513467]
[1759774850440,0.09,236.19,236.12,4.23513467]
[1759774851643,0.09,236.19,236.14,20.8]
[1759774851956,0.09,236.19,236.15,29.66]
[1759774852455,0.78,236.19,236.15,29.66]
[1759774854554,0.09,236.19,236.15,29.66]
[1759774856539,0.09,236.19,236.15,33.89455513]
[1759774858543,0.69,236.18,236.14,20.8]
[1759774858860,0.69,236.18,236.16,29.66]
[1759774859450,0.69,236.18,236.09,0.65]
[1759774859451,0.69,236.17,236.09,4.23567283]
[1759774859757,0.69,236.17,236.1,29.66]
[1759774860062,0.69,236.17,236.11,29.66]
[1759774862664,0.69,236.17,236.11,33.89527631]
[1759774864856,0.69,236.17,236.11,29.66]
[1759774865746,0.69,236.17,236.11,161.16]
[1759774865943,0.69,236.17,236.11,161.81]
[1759774867248,0.78,236.19,236.11,166.0453114]
[1759774867755,0.69,236.18,236.11,166.0453114]
[1759774868648,0.69,236.18,236.11,132.15]
[1759774868849,0.69,236.18,236.12,29.66]
[1759774871160,0.69,236.18,236.12,30.31]
[1759774871759,0.69,236.17,236.12,161.81]
[1759774871952,0.69,236.17,236.13,0.65]
[1759774872752,0.09,236.19,236.14,0.65]
[1759774872957,0.09,236.19,236.15,50.46]
[1759774873162,0.09,236.19,236.16,0.65]
[1759774873470,0.09,236.19,236.17,0.65]
[1759774873662,0.09,236.19,236.17,132.15]
[1759774875352,0.09,236.19,236.17,131.5]
[1759774875763,0.09,236.19,236.17,161.16]
[1759774875969,0.09,236.19,236.17,161.81]
[1759774876476,0.09,236.19,236.17,131.5]
[1759774876684,0.78,236.19,236.17,161.16]
[1759774877475,0.69,236.18,236.17,131.5]
[1759774877778,0.69,236.18,236.16,29.66]
[1759774878152,0.68,236.17,236.15,131.5]
[1759774878352,0.68,236.16,236.15,131.5]
[1759774878767,0.68,236.18,236.15,131.5]
[1759774878961,0.68,236.17,236.15,131.5]
[1759774881178,0.68,236.16,236.15,131.5]
[1759774881474,0.68,236.16,235.4,673.2]
[1759774881475,10.87647521,236.15,236.07,4.74488478]
[1759774881679,3.0086298,236.11,236.03,0.69]
[1759774881852,0.68,236.1,236.03,5.43488478]
[1759774882052,0.68,236.1,236.04,29.66]
[1759774882975,0.68,236.1,236.04,30.35]
[1759774883762,4.9155299,236.1,236.04,30.35]
[1759774883961,0.68,236.09,236.04,30.35]
[1759774884164,0.68,236.08,236.04,29.66]
[1759774884362,7.2441597,236.1,236.02,0.69]
[1759774884363,0.68,236.07,236.02,29.66]
[1759774884560,0.68,236.06,236.02,29.66]
[1759774884875,7.24519987,236.04,235.99,4.74488478]
[1759774885076,0.68,236.03,235.99,4.74488478]
[1759774885277,0.68,236.02,235.98,29.66]
[1759774885589,0.68,236.01,235.98,29.66]
[1759774885966,0.68,236.01,235.98,20.8]
[1759774886387,0.68,236.03,235.98,20.8]
[1759774886554,0.68,236.02,235.98,20.8]
[1759774887750,0.68,236.01,235.97,29.66]
[1759774888058,0.68,236.01,235.97,30.35]
[1759774888359,4.9167523,236.03,235.97,30.35]
[1759774888776,4.23657007,236.04,235.96,20.8]
[1759774888979,3.0086298,236.01,235.95,29.66]
[1759774889161,0.68,236.0,235.95,29.66]
[1759774889478,3.0086298,236.01,235.95,29.66]
[1759774889479,0.68,235.99,235.95,29.66]
[1759774890172,0.68,235.99,235.95,30.35]
[1759774890358,0.68,236.01,235.95,30.35]
[1759774890776,4.91711796,236.01,235.95,30.35]
[1759774891282,7.92574776,236.01,235.95,30.35]
[1759774892180,0.68,236.01,235.95,30.35]
[1759774892356,0.68,236.04,235.96,0.69]
[1759774892885,4.23639436,236.05,235.96,0.69]
[1759774893271,4.91639436,236.05,235.96,0.69]
[1759774893567,4.91639436,236.05,235.96,4.92789822]
[1759774893774,4.91639436,236.05,235.97,0.69]
[1759774895372,7.92502416,236.05,235.96,0.69]
[1759774895684,3.0086298,236.01,235.91,21.49]
[1759774895898,25.70384605,236.05,235.92,29.68]
[1759774895899,3.6986298,236.0,235.92,29.68]
[1759774896186,0.69,236.0,235.92,30.36]
[1759774896758,4.92738401,236.0,235.92,30.36]
[1759774897891,4.92738401,236.0,235.93,0.68]
[1759774899686,0.69,236.0,235.93,0.68]
[1759774901464,4.92730183,236.0,235.93,0.68]
[1759774903485,4.92730183,236.0,235.92,30.36]
[1759774903797,0.69,235.99,235.92,30.36]
[1759774903978,4.92755391,235.99,235.92,30.36]
[1759774904179,0.69,235.98,235.92,30.36]
[1759774905469,0.69,235.98,235.91,20.8]
[1759774905470,0.69,235.97,235.91,20.8]
[1759774905663,0.69,235.96,235.91,20.8]
[1759774905965,0.69,235.95,235.9,29.68]
[1759774906183,3.6986298,235.94,235.87,0.1]
[1759774906377,3.0086298,235.92,235.87,0.1]
[1759774906574,3.0086298,235.91,235.87,0.1]
[1759774906784,0.69,235.9,235.87,0.1]
[1759774907090,0.69,235.89,235.87,0.1]
[1759774907296,4.92943301,235.89,235.87,0.1]
[1759774907492,0.69,235.88,235.87,0.1]
[1759774911486,6.86042498,235.88,235.87,0.1]
[1759774911864,4.92944378,235.88,235.87,0.1]
[1759774912889,0.69,235.88,235.87,0.1]
[1759774914006,10.87647521,235.93,235.87,0.82]
[1759774914180,0.72,235.96,235.87,34.73962352]
[1759774914494,0.72,235.96,235.9,20.8]
[1759774914872,0.72,235.98,235.91,0.72]
[1759774915072,0.72,236.0,235.92,29.68]
[1759774915295,0.72,236.0,235.93,0.72]
[1759774915573,6.16791027,236.02,235.93,0.72]
[1759774915878,0.72,236.02,235.93,0.72]
[1759774916087,4.95658473,236.04,235.93,0.72]
[1759774916475,4.95658473,236.04,235.95,25.03808749]
[1759774916699,4.95658473,236.04,235.96,0.72]
[1759774916901,4.95658473,236.04,235.97,29.68]
[1759774917196,0.72,236.03,235.97,29.68]
[1759774918796,6.16756593,236.04,235.96,29.68]
[1759774918797,1.9309812,236.0,235.96,29.68]
[1759774918979,0.72,235.99,235.96,29.68]
[1759774920302,1.9309812,235.99,235.94,29.68]
[1759774920474,1.9309812,235.99,235.95,0.72]
[1759774920680,6.16828742,236.0,235.95,0.72]
[1759774920904,6.88828742,236.0,235.95,0.72]
[1759774921611,10.87647521,236.04,235.94,29.68]
[1759774921787,1.9309812,236.02,235.95,0.72]
[1759774922102,0.72,236.01,235.95,0.72]
[1759774924978,0.72,236.01,235.9,20.8]
[1759774925202,0.72,236.01,235.85,0.72]
[1759774925203,1.9309812,235.92,235.85,0.72]
[1759774925384,2.6509812,235.91,235.85,0.72]
[1759774925584,2.6509812,235.91,235.85,21.52]
[1759774925789,6.89001332,235.91,235.85,0.72]
[1759774926007,6.89001332,235.91,235.85,21.52]
[1759774926488,0.72,235.91,235.86,20.8]
[1759774927090,0.72,235.91,235.85,0.72]
[1759774927091,0.72,235.9,235.85,20.8]
[1759774927288,1.9309812,235.89,235.83,0.72]
[1759774927489,2.6509812,235.88,235.83,29.68]
[1759774928010,6.89042498,235.88,235.82,29.68]
[1759774928195,17.76690019,235.88,235.81,0.1]
[1759774928399,10.87647521,235.87,235.81,0.1]
[1759774928610,1.9309812,235.82,235.81,0.1]
[1759774929000,2.6509812,235.82,235.81,0.1]
[1759774933011,6.89150363,235.82,235.81,0.1]
[1759774933717,2.6509812,235.82,235.81,0.1]
[1759774934316,4.24028697,235.84,235.81,0.1]
[1759774934317,1.9309812,235.84,235.81,0.1]
[1759774934503,1.9309812,235.85,235.81,0.82]
[1759774934695,1.9309812,235.85,235.81,0.1]
[1759774934901,0.72,235.84,235.81,0.1]
[1759774935110,2.6509812,235.84,235.81,0.1]
[1759774935402,0.72,235.83,235.81,0.1]
[1759774936112,0.72,235.82,235.81,0.1]
[1759774936316,1.9309812,235.83,235.81,0.1]
[1759774936696,2.6509812,235.83,235.81,0.1]
[1759774936901,6.89133714,235.83,235.81,0.1]
[1759774937208,0.72,235.82,235.81,0.1]
[1759774937408,2.6509812,235.82,235.81,0.1]
[1759774937816,13.52745641,235.82,235.81,0.1]
[1759774938720,17.76797884,235.82,235.81,0.1]
[1759774943698,11.59647521,235.82,235.81,0.1]
[1759774943914,17.74797884,235.82,235.81,0.1]
[1759774944308,17.04797884,235.82,235.81,0.1]
[1759774944714,17.74797884,235.82,235.81,0.1]
[1759774945104,0.7,235.84,235.81,0.1]
[1759774945328,2.6309812,235.84,235.81,0.1]
[1759774945523,1.9309812,235.83,235.81,0.1]
[1759774945707,6.87124304,235.84,235.81,0.1]
[1759774947138,1.9309812,235.83,235.81,0.1]
[1759774947328,1.9309812,235.82,235.81,0.1]
[1759774948340,1.9309812,235.83,235.81,0.81]
[1759774948532,1.9309812,235.84,235.81,0.81]
[1759774948906,10.87647521,235.84,235.81,0.81]
[1759774949221,17.04761034,235.85,235.81,0.81]
[1759774949622,17.74761034,235.85,235.81,0.81]
[1759774949824,15.11662914,235.85,235.81,0.81]
[1759774950019,17.04761034,235.85,235.81,0.81]
[1759774950229,17.74761034,235.85,235.81,0.1]
[1759774950621,17.74761034,235.85,235.81,0.81]
[1759774950819,4.23981455,235.86,235.82,0.71]
[1759774951226,4.23981455,235.86,235.83,0.71]
[1759774951607,4.23981455,235.86,235.81,0.1]
[1759774951812,4.23981455,235.86,235.82,0.71]
[1759774952438,6.87079575,235.86,235.81,0.1]
[1759774952638,1.9309812,235.84,235.81,0.1]
[1759774952827,11.57647521,235.85,235.81,0.1]
[1759774952828,12.80745641,235.82,235.81,0.1]
[1759774953235,13.50745641,235.82,235.81,0.1]
[1759774954144,17.74797884,235.82,235.81,0.1]
[1759774962131,17.04797884,235.82,235.81,0.1]
[1759774962556,17.70797884,235.82,235.81,0.1]
[1759774968433,46.74797884,235.82,235.81,0.1]
[1759774968633,44.81699764,235.82,235.81,0.1]
[1759774968840,29.7,235.82,235.81,0.78]
[1759774969651,29.7,235.82,235.81,0.1]
[1759774970657,11.54647521,235.86,235.81,0.78]
[1759774970658,15.11642512,235.86,235.81,0.78]
[1759774970952,18.13531015,235.86,235.81,0.78]
[1759774971253,18.13531015,235.86,235.82,0.68]
[1759774972147,18.13531015,235.86,235.81,0.1]
[1759774972326,15.11642512,235.86,235.83,0.68]
[1759774972532,18.13531015,235.86,235.83,0.68]
[1759774972835,18.13531015,235.86,235.81,0.78]
[1759774973043,18.13531015,235.86,235.82,0.68]
[1759774973728,10.87647521,235.86,235.82,0.68]
[1759774974027,4.23968171,235.87,235.83,0.68]
[1759774974226,29.7,235.88,235.83,0.68]
[1759774974825,29.7,235.88,235.84,0.68]
[1759774975024,29.7,235.88,235.85,0.68]
[1759774975464,33.93946122,235.88,235.85,0.68]
[1759774976751,4.23923174,235.9,235.81,25.1406902]
[1759774977054,36.95811677,235.9,235.82,0.68]
[1759774977431,3.01888503,235.89,235.82,0.68]
[1759774977633,3.01888503,235.88,235.82,0.68]
[1759774977962,36.95811677,235.9,235.82,0.68]
[1759774979952,37.62811677,235.9,235.82,0.68]
[1759774980154,34.60923174,235.9,235.82,0.68]
[1759774980347,3.01888503,235.88,235.82,0.68]
[1759774980553,3.68888503,235.88,235.82,0.68]
[1759774980755,3.01888503,235.87,235.81,0.1]
[1759774981263,0.67,235.88,235.81,0.78]
[1759774981835,3.68888503,235.88,235.81,0.78]
[1759774982058,3.68888503,235.88,235.81,5.02068251]
[1759774982267,3.68888503,235.88,235.82,0.68]
[1759774982556,7.92839233,235.88,235.82,0.68]
[1759774984037,3.01888503,235.87,235.82,0.68]
[1759774984258,0.67,235.86,235.82,0.68]
[1759774984845,3.68888503,235.85,235.81,0.1]
[1759774985154,3.01888503,235.84,235.81,0.1]
[1759774985472,3.68888503,235.84,235.81,0.1]
[1759774985768,0.67,235.84,235.81,0.1]
[1759774986138,0.67,235.84,235.76,4.24160162]
[1759774986738,0.67,235.84,235.76,8.9341531]
[1759774987066,0.67,235.84,235.76,19.53815717]
[1759774987255,4.90924623,235.9,235.76,19.53815717]
[1759774987458,0.67,235.89,235.77,34.37255148]
[1759774988257,0.67,235.89,235.8,20.8]
[1759774988644,7.25819283,235.89,235.81,0.4]
[1759774988843,0.67,235.88,235.81,0.4]
[1759774990162,4.90957077,235.88,235.81,0.4]
[1759774990682,7.9284558,235.88,235.81,0.4]
[1759774992650,7.9284558,235.88,235.8,25.04083459]
[1759774992862,0.67,235.87,235.8,25.04083459]
[1759774993058,0.67,235.87,235.8,25.44083459]
[1759774993573,0.67,235.87,235.8,152.7]
[1759774993753,0.67,235.86,235.8,156.54086629]
[1759774994147,0.67,235.88,235.8,156.94086629]
[1759774994348,0.67,235.87,235.8,156.94086629]
[1759774996469,0.67,235.87,235.81,29.68]
[1759774996770,0.67,235.91,235.81,161.58]
[1759774996973,3.68888503,235.9,235.81,131.5]
[1759774997177,0.67,235.89,235.82,29.68]
[1759774997371,3.01888503,235.87,235.81,131.5]
[1759774997675,3.01888503,235.87,235.77,10.60332301]
[1759774997676,3.01888503,235.85,235.76,4.69255148]
[1759774997974,3.01888503,235.81,235.76,29.68]
[1759774998152,0.72,235.8,235.76,29.68]
[1759774998352,0.72,235.79,235.76,29.68]
[1759774998551,0.72,235.79,235.73,15.60270565]
[1759774998765,0.72,235.79,235.74,29.68]
[1759774999177,0.72,235.8,235.74,30.08]
[1759774999377,0.72,235.8,235.75,29.68]
[1759774999679,0.72,235.79,235.74,29.68]
[1759774999975,0.72,235.78,235.74,29.68]
[1759775000171,0.72,235.8,235.74,29.68]
[1759775001283,0.72,235.8,235.74,33.92193168]
[1759775001960,4.96094103,235.8,235.74,29.68]
[1759775003778,0.72,235.8,235.74,29.68]
[1759775004077,4.24070226,235.81,235.74,29.68]
[1759775004281,0.72,235.79,235.74,29.68]
[1759775004780,0.72,235.79,235.74,30.08]
[1759775004980,0.72,235.79,235.74,29.68]
[1759775006384,0.72,235.79,235.74,30.08]
[1759775006772,0.72,235.79,235.74,29.68]
[1759775007071,0.72,235.79,235.74,30.08]
[1759775007267,0.72,235.78,235.73,10.9607438]
[1759775007587,0.72,235.77,235.73,40.6407438]
[1759775008167,0.72,235.76,235.73,40.6407438]
[1759775008563,4.9612512,235.78,235.73,40.6407438]
[1759775008773,0.72,235.78,235.73,40.6407438]
[1759775008985,4.96104075,235.8,235.74,0.4]
[1759775009389,4.96104075,235.8,235.73,40.6407438]
[1759775009575,0.72,235.79,235.73,40.6407438]
[1759775009896,4.96107373,235.79,235.73,40.6407438]
[1759775010675,4.24083333,235.81,235.73,44.8827906]
[1759775010867,0.72,235.8,235.73,40.6407438]
[1759775011088,0.72,235.79,235.73,40.6407438]
[1759775011399,7.25971836,235.81,235.73,40.6407438]
[1759775011400,0.72,235.78,235.73,40.6407438]
[1759775012399,0.72,235.77,235.73,10.9607438]
[1759775012572,0.72,235.76,235.73,40.6407438]
[1759775013690,0.72,235.78,235.73,40.6407438]
[1759775014093,0.72,235.77,235.73,40.6407438]
[1759775014877,0.72,235.76,235.73,40.6407438]
[1759775015077,7.25995083,235.79,235.73,40.6407438]
[1759775015291,0.72,235.78,235.73,40.6407438]
[1759775015683,0.72,235.77,235.73,40.6407438]
[1759775015878,0.65,235.76,235.73,40.6407438]
[1759775016276,0.65,235.75,235.73,10.9607438]
[1759775016476,4.24134458,235.78,235.73,10.9607438]
[1759775016477,0.65,235.77,235.73,10.9607438]
[1759775016693,0.65,235.78,235.73,10.9607438]
[1759775016895,0.65,235.77,235.73,10.9607438]
[1759775018678,7.25991921,235.8,235.73,10.9607438]
[1759775018998,0.65,235.79,235.73,10.9607438]
[1759775019206,0.65,235.78,235.73,10.9607438]
[1759775019507,7.25991921,235.8,235.73,15.20282937]
[1759775019674,0.65,235.79,235.73,15.60282937]
[1759775020796,4.89109201,235.79,235.73,11.3607438]
[1759775021295,4.89109201,235.79,235.73,10.9607438]
[1759775021795,4.89109201,235.79,235.73,15.60286972]
[1759775022890,0.65,235.78,235.73,15.20286972]
[1759775023281,0.65,235.78,235.73,15.60286972]
[1759775023467,4.24109201,235.79,235.73,15.60286972]
[1759775023671,7.90978977,235.8,235.73,15.60286972]
[1759775023868,0.65,235.79,235.73,15.60286972]
[1759775024067,0.65,235.79,235.73,11.3607438]
[1759775025286,0.65,235.79,235.73,15.60281005]
[1759775025589,0.65,235.79,235.73,11.3607438]
[1759775025800,4.89106992,235.79,235.73,11.3607438]
[1759775026496,0.65,235.79,235.73,10.9607438]
[1759775026795,0.65,235.79,235.73,15.20285287]
[1759775027301,0.65,235.79,235.73,15.60285287]
[1759775027501,0.65,235.83,235.74,0.4]
[1759775027683,0.65,235.83,235.75,29.68]
[1759775027874,15.11681374,235.84,235.76,0.4]
[1759775028080,0.66,235.82,235.76,0.4]
[1759775029276,4.9005568,235.82,235.76,29.68]
[1759775029472,0.66,235.81,235.76,29.68]
[1759775029675,0.66,235.8,235.76,29.68]
[1759775029987,4.9005568,235.82,235.76,30.08]
[1759775030186,4.9005568,235.82,235.76,29.68]
[1759775030688,2.59212367,235.81,235.75,131.5]
[1759775030888,0.66,235.8,235.75,161.18]